Cogmind - Beta 14 @@@ ROGUE MODE // 2024.09.26 @ 01:26:41 Player: celerysam Result: Self-destructed Performance ------------- Evolutions (2) 1000 Regions Visited (3) 600 Robots Destroyed (37) 185 Value Destroyed (988) 988 Prototype IDs (2) 40 Alien Tech Used (0) 0 Bonus (0) 0 TOTAL SCORE: 2813 Bonus ------- None Cogmind --------- Core Integrity 406/550 Matter 80/300 Energy 328/480 System Corruption 0% Temperature Warm (101) Movement Treading (240) Ox1 Location -8/Materials Parts ------- > --- POWER (1) -------- Heavy Ion Engine > --- PROPULSION (4) --- Improved Treads > --- UTILITY (4) ------ Small Storage Unit Compact Battery Structural Scanner ECM Suite > --- WEAPON (2) ------- Light EM Pulse Cannon Gauss Cannon > --- INVENTORY (8) ---- Reinforced Ion Engine Deuterium Engine Improved Aluminum Leg Improved Aluminum Leg ECM Suite Hardlight Generator Spread Laser Mini Grenade Launcher Peak State ------------ > --- POWER ------------ Heavy Ion Engine > --- PROPULSION ------- Improved Treads Improved Treads Improved Treads Improved Treads > --- UTILITY ---------- Small Storage Unit Structural Scanner ECM Suite Hardened Light Armor Plating > --- WEAPON ----------- Spread Laser Gauss Cannon > --- INVENTORY -------- Reinforced Ion Engine Improved Aluminum Leg Improved Aluminum Leg ECM Suite Light EM Pulse Cannon Mini Grenade Launcher [Rating: 23] Favorites ----------- Power Reinforced Ion Engine Engine Reinforced Ion Engine Propulsion Improved Treads Treads Improved Treads Leg Improved Aluminum Leg Wheel Compact Wheel Utility Small Storage Unit Device ECM Suite Storage Small Storage Unit Protection Hardened Light Armor Plating Weapon Autogun Energy Gun Improved EM Shotgun Energy Cannon Light EM Pulse Cannon Ballistic Gun Autogun Ballistic Cannon Gauss Cannon Launcher Mini Grenade Launcher Build | -11 -10 -9 -8 ------- Run | Yrd Mat Mat Mat Slots Evolved 4 | . . 2 2 Power . | . . . . Propulsion 2 | . . 1 1 Utility 2 | . . 1 1 Weapon . | . . . . Parts Attached 38 | 6 10 15 7 Power 3 | 1 1 1 . Engine 3 | 1 1 1 . Core . | . . . . Reactor . | . . . . Propulsion 15 | 2 3 9 1 Treads 7 | . . 6 1 Leg 5 | . 3 2 . Wheel 3 | 2 . 1 . Hover . | . . . . Flight . | . . . . Utility 8 | 1 2 3 2 Device 3 | . 2 . 1 Storage 2 | 1 . . 1 Processor . | . . . . Hackware . | . . . . Protection 3 | . . 3 . Artifact . | . . . . Weapon 12 | 2 4 2 4 Energy Gun 5 | 1 2 2 . Energy Cannon 2 | . 1 . 1 Ballistic Gun 2 | 1 1 . . Ballistic Cannon 2 | . . . 2 Launcher 1 | . . . 1 Special Weapon . | . . . . Impact Weapon . | . . . . Slashing Weapon . | . . . . Piercing Weapon . | . . . . Special Melee Weapon . | . . . . Unidentified Prototypes 2 | . . 2 . Parts Lost 5 | . . 1 4 Power . | . . . . Propulsion 4 | . . 1 3 Utility 1 | . . . 1 Weapon . | . . . . Highest Loss Streak 2 | . . 1 2 To Critical Strikes . | . . . . Average Slot Usage (%) 96 | . 88 99 94 Engine 11 | . 14 11 9 Treads 18 | . . 21 33 Leg 11 | . 21 11 . Wheel 1 | . 6 . . Device 10 | . 4 11 17 Storage 11 | . 14 11 12 Protection 7 | . . 10 4 Energy Gun 10 | . 12 10 8 Ballistic Gun 10 | . 14 11 . Peak Build Rating 23 | 6 13 19 23 Average Rating 15 | 3 9 17 21 On Entrance 9 | . 6 13 18 Naked Turns . | . . . . Heaviest Build 31 | 14 24 29 31 Greatest Support 92 | 26 26 69 92 Greatest Overweight (x) 4 | 4 4 . . Average Overweight (x) . | 2 . . . Largest Inventory Capacity 8 | 8 8 8 8 Average Capacity 7 | 7 8 8 8 Most Carried 8 | 8 8 8 8 Average Carried 7 | 5 7 7 7 Final Capacity 8 | 8 8 8 8 Final Carried 8 | 6 8 8 8 Class Distribution -------------------- 86% | Mutant 13% | Infiltrator-Mutant Dominant Class ---------------- Mutant | -10/Materials Mutant | -9/Materials Infiltrator-Mutant | -8/Materials Resources | -11 -10 -9 -8 ----------- Run | Yrd Mat Mat Mat Matter Collected 693 | 223 149 321 . Remotely . | . . . . Salvage Created 1105 | . 233 605 267 Parts 70 | . 17 31 22 Haulers Intercepted 2 | . . 1 1 Recyclers Shooed . | . . . . Parts Field Recycled . | . . . . Retrieved Matter . | . . . . Parts Self-Destructed . | . . . . Prevented . | . . . . Kills | -11 -10 -9 -8 ------- Run | Yrd Mat Mat Mat Combat Hostiles Destroyed 30 | . 9 11 10 Guns 19 | . 7 11 1 Cannons 1 | . 1 . . AOE 10 | . 1 . 9 Classes Destroyed 9 | . 2 3 4 Builder 1 | . . . 1 Tunneler 1 | . . . 1 Hauler 2 | . . 1 1 Mechanic 1 | . . . 1 Watcher 2 | . . 1 1 Swarmer 10 | . 6 . 4 Grunt 17 | . 3 9 5 Brawler 1 | . . . 1 Sentry 2 | . . 2 . Best Kill Streak 15 | . 3 5 15 Combat Bots Only 10 | . 3 3 10 Max Kills in Single Turn 3 | . 1 2 3 Gunslinging 1 | . . 1 . Exploded 2 | . 1 . 2 Melee . | . . . . Uniques/NPCs Destroyed . | . . . . Combat | -11 -10 -9 -8 -------- Run | Yrd Mat Mat Mat Hostile Shots Fired 208 | . 35 77 96 Missed 59 | . 11 20 28 Damage Taken 1804 | . 215 745 844 Core 306 | . 74 88 144 Absorbed by Shields . | . . . . Core Remaining (%) 82 | 100 70 78 . Volleys Fired 72 | . 15 40 17 Largest 2 | . 2 2 2 Hottest 104 | . 79 88 104 Shots Fired 138 | . 30 74 34 Gun 114 | . 28 73 13 Cannon 11 | . 2 1 8 Launcher 13 | . . . 13 Special . | . . . . Kinetic 59 | . 15 40 4 Thermal 32 | . 13 6 13 Explosive 13 | . . . 13 Electromagnetic 34 | . 2 28 4 Robot Hit Streak 11 | . 2 11 4 Robot Miss Streak 7 | . 2 6 7 Penetration Max . | . . . . Secondary Targets 3 | . 1 2 . Max Gunslinging Chain 1 | . 1 1 . Shots Hit Robots 78 | . 13 54 11 Core Hits 73 | . 12 30 31 Critical Kills . | . . . . Critical Parts Destroyed . | . . . . Critical Strikes . | . . . . Melee Attacks . | . . . . Impact . | . . . . Slashing . | . . . . Piercing . | . . . . Sneak Attacks . | . . . . Combat Hostiles . | . . . . Follow-up Attacks . | . . . . Damage Inflicted 2483 | . 271 854 1358 Guns 1020 | . 166 781 73 Cannons 238 | . 47 28 163 Explosions 1210 | . 58 30 1122 Melee . | . . . . Ramming 15 | . . 15 . Kinetic 556 | . 90 383 83 Thermal 324 | . 134 88 102 Explosive 1093 | . . . 1093 Electromagnetic 495 | . 47 368 80 Impact . | . . . . Slashing . | . . . . Piercing . | . . . . Highest Corruption 1 | . 1 . . Average Corruption 1 | . 1 . . Corruption Purged . | . . . . Corruption Blocked . | . . . . Effects 1 | . 1 . . Data Loss (minor) 1 | . 1 . . Overload Shots . | . . . . Overflow Damage 45 | . . . 45 Projectiles 5 | . . . 5 Explosions 40 | . . . 40 Melee . | . . . . Knockbacks . | . . . . Impact . | . . . . Kinetic . | . . . . Secondary . | . . . . Self-Inflicted Damage 23 | . . 23 . Shots 1 | . . 1 . Rammed . | . . . . Targets Rammed 1 | . . 1 . Kicked 1 | . . 1 . Crushed . | . . . . Highest Temperature 313 | . 87 313 203 Average Temperature 97 | . 38 108 115 Received Heat Transfer 651 | . 42 339 270 Siege Activations . | . . . . Robots Corrupted . | . . . . Combat Hostiles . | . . . . Parts Fried . | . . . . Impact Corruptions . | . . . . Robots Melted . | . . . . Combat Hostiles . | . . . . Parts Melted 1 | . . 1 . Heat Transferred 577 | . 322 115 140 Parts Sabotaged . | . . . . Parts Stolen . | . . . . Parts Stripped . | . . . . Power Chain Reactions 3 | . 1 1 1 Alert | -11 -10 -9 -8 ------- Run | Yrd Mat Mat Mat Peak Influence 359 | . 272 265 359 Initial 114 | . . 114 66 Average 127 | . 146 126 177 Maximum Alert Level 1 | . 1 1 1 Low Security (%) 76 | 100 70 80 58 Level 1 23 | . 29 19 41 Level 2 . | . . . . Level 3 . | . . . . Level 4 . | . . . . Level 5 . | . . . . High Security . | . . . . Max Security . | . . . . Squads Dispatched 5 | . 1 2 2 Investigation 2 | . . 1 1 Extermination . | . . . . Reinforcement 3 | . 1 1 1 Assault . | . . . . Garrison . | . . . . Intercept . | . . . . Searches Triggered . | . . . . Construction Impeded 1 | . . . 1 Haulers Reinforced . | . . . . Active Scanning Responses . | . . . . Cargo Convoy Interrupts . | . . . . Stealth | -11 -10 -9 -8 --------- Run | Yrd Mat Mat Mat Distress Signals 1 | . . 1 . Communications Jammed . | . . . . Distress Signals . | . . . . Times Spotted 45 | . 12 19 14 Peak Tracking Total 7 | . 4 5 7 Tactical Retreats 4 | . 2 1 1 Traps | -11 -10 -9 -8 ------- Run | Yrd Mat Mat Mat Traps Triggered 3 | . 1 2 . Indirectly . | . . . . Trap Hack Attempts . | . . . . Triggered . | . . . . Disarmed . | . . . . Reprogrammed . | . . . . Reused . | . . . . Traps Extracted . | . . . . Installed . | . . . . Triggered . | . . . . Machines | -11 -10 -9 -8 ---------- Run | Yrd Mat Mat Mat Machines Disabled 2 | . 1 . 1 Max in Single Turn 1 | . 1 . 1 Machines Repaired . | . . . . Machines Dismantled . | . . . . Machines Sabotaged . | . . . . Overloaded Fab Kills . | . . . . Hacking | -11 -10 -9 -8 --------- Run | Yrd Mat Mat Mat Machines Accessed 5 | . 1 3 1 Terminals 5 | . 1 3 1 Fabricators . | . . . . Repair Stations . | . . . . Recycling Units . | . . . . Scanalyzers . | . . . . Garrison Access . | . . . . Total Hacks 8 | . 1 4 3 Successful 5 | . . 4 1 Failed 3 | . 1 . 2 Catastrophic . | . . . . Database Lockouts . | . . . . Manual 4 | . 1 2 1 Terminals 8 | . 1 4 3 Fabricators . | . . . . Repair Stations . | . . . . Recycling Units . | . . . . Scanalyzers . | . . . . Garrison Access . | . . . . Terminal Hacks 3 | . . 2 1 Record 1 | . . 1 . Alert Level 1 | . . . 1 Unreport Threat 1 | . . 1 . Fabricator Hacks . | . . . . Repair Station Hacks . | . . . . Recycling Unit Hacks . | . . . . Scanalyzer . | . . . . Garrison Access Hacks . | . . . . Unauthorized Hacks 2 | . . 2 . Terminals 2 | . . 2 . Botnet 2 | . . 2 . Fabricators . | . . . . Repair Stations . | . . . . Recycling Units . | . . . . Scanalyzers . | . . . . Garrison Access . | . . . . Data Cores Recovered . | . . . . Used . | . . . . Hacking Detections 2 | . 1 . 1 Full Trace Events 1 | . . . 1 Feedback Events . | . . . . Feedback Blocked . | . . . . Robot Schematics Acquired . | . . . . Robots Built . | . . . . Authchips . | . . . . Time . | . . . . Total Robot Build Rating . | . . . . Part Schematics Acquired . | . . . . Parts Built . | . . . . Authchips . | . . . . Time . | . . . . Total Part Build Rating . | . . . . Parts Repaired . | . . . . Time . | . . . . Parts Recycled . | . . . . Recycled Matter . | . . . . Retrieved Matter . | . . . . Retrieved Components . | . . . . Parts Scanalyzed . | . . . . Part Schematics Acquired . | . . . . Parts Damaged . | . . . . Bothacking | -11 -10 -9 -8 ------------ Run | Yrd Mat Mat Mat Used RIF Installer . | . . . . Robots Hacked . | . . . . Non-combat . | . . . . Combat . | . . . . Robot Hacks Applied . | . . . . Relay Couplers Released . | . . . . Fabnet Peak Effective % . | . . . . Robots Rewired . | . . . . Allies Hacked . | . . . . Hacks Repelled . | . . . . Allies | -11 -10 -9 -8 -------- Run | Yrd Mat Mat Mat Total Allies . | . . . . Largest Group . | . . . . Highest-Rated Group . | . . . . Highest-Rated Ally . | . . . . Total Orders . | . . . . Ally Attacks . | . . . . Total Damage . | . . . . Kills . | . . . . Allies Corrupted . | . . . . Allies Melted . | . . . . Intel | -11 -10 -9 -8 ------- Run | Yrd Mat Mat Mat Robot Analysis Total . | . . . . Derelict Logs Recovered . | . . . . Drone Launches . | . . . . Drone Recoveries . | . . . . Exploration | -11 -10 -9 -8 ------------- Run | Yrd Mat Mat Mat Turns Passed 1316 | 107 279 743 187 Spaces Moved 723 | 55 181 410 77 Core 43 | 42 1 . . Treads 353 | . . 276 77 Legs 266 | . 132 134 . Wheels 61 | 13 48 . . Hover . | . . . . Flight . | . . . . Fastest Speed 50 | 50 90 120 160 Average Speed 140 | 160 112 146 160 Slowest Speed 250 | 250 250 160 160 Overloaded Moves . | . . . . Propulsion Burnouts . | . . . . Robots Hopped . | . . . . Cave-ins Triggered . | . . . . Exploration Rate (%) 22 | 4 33 38 14 Regions Visited 3 Branch Regions . Pre-discovered Areas . | . . . . Known Exits Taken . | . . . . Unknown Exits Taken 3 | 1 1 1 . Scrap Searched . | . . . . Spaces Dug . | . . . . Terrain Destroyed 31 | . 2 3 26 Melee . | . . . . Projectile . | . . . . AOE 31 | . 2 3 26 Terrain Rammed . | . . . . Walls Destroyed . | . . . . Machines Disabled . | . . . . Actions | -11 -10 -9 -8 --------- Run | Yrd Mat Mat Mat Total 895 | 73 231 486 105 Wait 12 | 2 5 5 . Move 720 | 54 180 409 77 Hop . | . . . . Pick Up 31 | 11 10 7 3 Fast Attach 8 | 1 2 4 1 Attach 13 | 5 2 3 3 Detach . | . . . . Swap 17 | . 6 8 3 Drop 21 | . 11 9 1 Fire 72 | . 15 40 17 Melee . | . . . . Ram . | . . . . Kick 1 | . . 1 . Crush . | . . . . Escape Stasis . | . . . . Rewire . | . . . . Trap . | . . . . Miscellaneous . | . . . . Route ------- -11/Scrapyard -10/Materials (discovered 2 exits: *Mat / [*Min]) -9/Materials -8/Materials History --------- Turn | Location | Event 44 | -11/Scrapyard | Discovered new exit (range 16) 108 | -11/Scrapyard | Entered Materials 160 | -10/Materials | Discovered new exit (range 10) 319 | -10/Materials | Discovered new exit (range 10) 379 | -10/Materials | Build established: Mutant 387 | -10/Materials | Entered another Materials area 387 | -9/Materials | Evolved 2 slots: Propulsion x1, Utility x1 617 | -9/Materials | Discovered new exit (range 11) 1130 | -9/Materials | Entered another Materials area 1130 | -8/Materials | Evolved 2 slots: Propulsion x1, Utility x1 1287 | -8/Materials | Destroyed 10 combat bots 1317 | -8/Materials | Self-destructed Last Messages --------------- Investigation squad. 01286_ U-05 Engineer lays Concrete. 01287_ U-05 Engineer builds a Wall. 01290_ U-05 Engineer lays Concrete. 01293_ U-05 Engineer builds a Wall. 01294_ U-05 Engineer lays Concrete. 01296_ U-05 Engineer builds a Wall. 01298_ U-05 Engineer lays Concrete. 01300_ U-05 Engineer builds a Wall. 01301_ U-05 Engineer lays Concrete. 01302_ Chain reaction triggered in Imp. Ion Engine. 01303_ U-05 Engineer lays Concrete. 01305_ U-05 Engineer builds a Wall. 01305_ U-05 Engineer lays Concrete. 01308_ Destroyed Seismic Detector. 01309_ U-05 Engineer lays Concrete. 01312_ Imp. Treads destroyed. 01313_ K-01 Serf collects debris. 01313_ U-05 Engineer lays Concrete. 01317_ Imp. Treads destroyed. Map ----- +----------------------------------------------------+ | ?????????????????????????????????????????????????? | | ?????????????????????????????????????????????????? | | ?????????????????????????????????????????????????? | | ??????????????????? ???????????????????????????? | | ?????????????????? ??????????????????????????? | | ?????????????????? ?? ???????????????????????? | | ?????????????????? ? ????????????????????? | | ????????????###### # !! ??????????????????? | | ????????????####### ##] !! ??????????????????? | | ????????????""" # ## !! ???????????????????? | | ??????????????? T # ## ????????????????????? | | ??????????????? ## ???????????????????? | | ???????????????? Y #????????????????? | | ??????????????? ;##;#### ???????????? | | ???????????????### % u = #####+#???????????? | | ???????????????## = ???????????? | | ???????????????### [! Y = ????????????? | | ???????????????##"" * % == ??????????????? | | ???????????????##"T ##????????????????? | | ???????????????##"" [ ] ## ????????????????? | | ???????????????#### ##?????????????????? | | ?????????? # #### ##?????????????????? | | ???????##+#### #### ##?????????????????? | | ???????## k *! ##?????????????????? | | ??????? # * ##?????????????????? | | ??????? + @ ## ?????????? | | ??????? # =| ##########?????????? | | ???????## # ##?????????? | | ???????? u u # ##?????????? | | ????????? + ####???????? | | ????????? ##### ############???????? | | ?????????? = ##### # ##???????? | | ?????????? ########+###### # """ ##???????? | | ???????????### # # """"" ##???????? | | ??????????? ### # # """"" ##???????? | | ????????????? ### # # """"" ##???????? | | ???????????????## + + """ ##???????? | | ???????????????## # # ##???????? | | ???????????????## # # ##???????? | | ???????????????## # ############???????? | | ???????????????## # ########???????? | | ???????????????############ ##?????????????? | | ???????????????############ ##?????????????? | | ?????????????????????????### ##?????????????? | | ?????????????????????????### [ ##?????????????? | | ??????????????????????????##!!] !!##?????????????? | | ??????????????????????????##!!]]!!##?????????????? | | ??????????????????????????##########?????????????? | | ??????????????????????????##########?????????????? | | | +----------------------------------------------------+ Best States ------------- Heat Dissipation 35 Energy Generation 14 Energy Capacity 480 Matter Stores 300 Matter Capacity 300 Sight Range 16 Terrain Scan Density 10 ECM Strength 1 Armor Coverage 150 Evasion (%) 55 Recoil Reduction 4 Item Schematics ----------------- None Robot Schematics ------------------ None Fabricated ------------ Nothing Alien Tech Used ----------------- None Achievements -------------- None Challenges ------------ None Game ------ Seed ThermicSapperFacilitator Manual? 0 Play Time 00:22:04 Cumulative 168.3 hours Start 2024.09.26 @ 00:55:39 End 2024.09.26 @ 01:26:41 Sessions 1 Manual Loads 0 Difficulty Rogue Special Mode None Game No. 232 Rogue 232 Adventurer 0 Explorer 0 Win Type - Total 0 Types 0/0/0/0/0/0/0/0/0 Lore% 32 Gallery% 61 Achievement% 41 Wizard Run 0 Options --------- Layout 0 ASCII 0 Keyboard 0 Movement Mouse Keybinds 0 Fullscreen 1 Font 24/Smallcaps Map View 76x50 Zoom Use 0% Tactical HUD 1 Map Filters NONE Filters NONE Steam 1 RUN: 11fc12ca-30ec-44f6-a1f0-eb933628882a